bitfinex/quotes_BTCUSD_20251009
["timestamp","ask_amount","ask_price","bid_price","bid_amount"]
[1759993835106,1.37886561,122110.0,122100.0,0.00236435]
[1759993835317,1.39415209,122110.0,122100.0,0.00236435]
[1759993835485,1.16307209,122110.0,122100.0,0.00236435]
[1759993835660,1.39415209,122110.0,122100.0,0.00236435]
[1759993835861,1.16307209,122110.0,122100.0,0.00236435]
[1759993836061,1.39415209,122110.0,122100.0,0.00236435]
[1759993837463,1.40179343,122110.0,122100.0,0.00236435]
[1759993837849,1.40179307,122110.0,122100.0,0.00236435]
[1759993838247,1.17071307,122110.0,122100.0,0.00236435]
[1759993838455,1.40179307,122110.0,122100.0,0.00236435]
[1759993841079,1.17071307,122110.0,122100.0,0.00236435]
[1759993841319,0.41323027,122110.0,122100.0,0.00236435]
[1759993841513,0.33684248,122110.0,122100.0,0.00236435]
[1759993845906,0.67691191,122110.0,122100.0,0.00236435]
[1759993846024,0.67691191,122110.0,122100.0,0.23344435]
[1759993846240,0.75690871,122110.0,122100.0,0.23344435]
[1759993847098,0.75690871,122110.0,122100.0,0.00236435]
[1759993847308,0.67691191,122110.0,122100.0,0.00684435]
[1759993847518,0.67691191,122110.0,122100.0,0.08264435]
[1759993849183,0.69223623,122110.0,122100.0,0.08264435]
[1759993849393,0.69223623,122110.0,122100.0,0.00236435]
[1759993850224,0.69223881,122110.0,122100.0,0.00236435]
[1759993852361,0.67691191,122110.0,122100.0,0.00236435]
[1759993852599,0.38970029,122110.0,122100.0,0.00236435]
[1759993852835,0.72976972,122110.0,122100.0,0.00236435]
[1759993853255,0.67691191,122110.0,122100.0,0.00236435]
[1759993858712,0.67691191,122110.0,122100.0,0.23344435]
[1759993859356,0.67691191,122110.0,122100.0,0.00236435]
[1759993859578,0.33684248,122110.0,122100.0,0.23344435]
[1759993859871,0.67691191,122110.0,122100.0,0.23344435]
[1759993862437,0.75690871,122110.0,122100.0,0.23344435]
[1759993862867,0.75690871,122110.0,122100.0,0.00236435]
[1759993862868,0.33684248,122110.0,122100.0,0.00236435]
[1759993863070,0.67691191,122110.0,122100.0,0.23344435]
[1759993866807,0.67691191,122110.0,122100.0,0.00236435]
[1759993867017,0.67691191,122110.0,122100.0,0.23344435]
[1759993867158,0.67691191,122110.0,122100.0,0.23340435]
[1759993867440,0.75690871,122110.0,122100.0,0.23340435]
[1759993869668,0.75690871,122110.0,122100.0,0.00236435]
[1759993869908,0.75690871,122110.0,122100.0,0.23340435]
[1759993870139,0.67202143,122110.0,122100.0,0.23340435]
[1759993871109,0.67202143,122110.0,122100.0,0.00236435]
[1759993871338,0.67202143,122110.0,122100.0,0.23340435]
[1759993872511,0.59202463,122110.0,122100.0,0.23340435]
[1759993875910,0.59202463,122110.0,122100.0,0.00236435]
[1759993876038,0.59202463,122110.0,122100.0,0.23340435]
[1759993876800,0.59202463,122110.0,122100.0,0.00236435]
[1759993877006,0.59202463,122110.0,122100.0,0.23340435]
[1759993877206,0.67202143,122110.0,122100.0,0.23340435]
[1759993877786,0.68737317,122110.0,122100.0,0.23340435]
[1759993878440,0.67202143,122110.0,122100.0,0.23340435]
[1759993879010,0.41683928,122110.0,122100.0,0.23340435]
[1759993879258,0.67202143,122110.0,122100.0,0.00236435]
[1759993879458,0.67202143,122110.0,122100.0,0.23340435]
[1759993879835,0.59202463,122110.0,122100.0,0.23340435]
[1759993882601,0.59202463,122110.0,122100.0,0.00236435]
[1759993882977,0.59202463,122110.0,122100.0,0.23340435]
[1759993889092,0.33684248,122110.0,122100.0,0.23340435]
[1759993889302,0.31188248,122110.0,122100.0,0.24865435]
[1759993890509,0.33450248,122110.0,122100.0,0.24865435]
[1759993890734,0.40331701,122110.0,122100.0,0.24865435]
[1759993890917,0.35609333,122110.0,122100.0,0.24865435]
[1759993891534,0.2872788,122110.0,122100.0,0.24865435]
[1759993891739,0.2872788,122110.0,122100.0,0.01761435]
[1759993891893,0.2872788,122110.0,122100.0,0.24865435]
[1759993892340,0.2872788,122110.0,122100.0,0.41245451]
[1759993892750,0.2872788,122110.0,122100.0,0.18141451]
[1759993892751,0.20415674,122110.0,122100.0,0.18141451]
[1759993892999,0.20415674,122110.0,122100.0,0.41245451]
[1759993893000,0.18895674,122110.0,122100.0,0.41245451]
[1759993893450,0.20476674,122110.0,122100.0,0.18141451]
[1759993893654,0.20476674,122110.0,122100.0,0.49765451]
[1759993893909,0.22738674,122110.0,122100.0,0.49765451]
[1759993894205,0.48256889,122110.0,122100.0,0.49765451]
[1759993896339,0.04098,122110.0,122100.0,0.49765451]
[1759993896490,0.17678674,122110.0,122100.0,0.51714451]
[1759993896870,0.17678674,122110.0,122100.0,0.49765451]
[1759993900638,0.19202674,122110.0,122100.0,0.49765451]
[1759993900885,0.19202674,122110.0,122100.0,0.41245451]
[1759993901007,0.19202674,122110.0,122100.0,0.49765451]
[1759993901437,0.20373674,122110.0,122100.0,0.49765451]
[1759993904469,0.013,122110.0,122100.0,0.51714451]
[1759993904863,0.17678674,122110.0,122100.0,0.49765451]
[1759993906446,0.013,122110.0,122100.0,0.49765451]
[1759993906643,0.17678674,122110.0,122100.0,0.49765451]
[1759993907258,0.013,122110.0,122100.0,0.49765451]
[1759993907460,0.17678674,122110.0,122100.0,0.18141451]
[1759993907669,0.17678674,122110.0,122100.0,0.49765451]
[1759993908404,0.19233674,122110.0,122100.0,0.49765451]
[1759993909915,0.02855,122110.0,122100.0,0.41245451]
[1759993910073,0.19233674,122110.0,122100.0,0.49765451]
[1759993913093,0.19233674,122110.0,122100.0,0.49761451]
[1759993913305,0.19233674,122110.0,122100.0,0.26661451]
[1759993913513,0.19233674,122110.0,122100.0,0.18141451]
[1759993913722,0.49775403,122110.0,122100.0,0.08756435]
[1759993913923,0.24257188,122110.0,122100.0,0.31856435]
[1759993914122,0.49775403,122110.0,122100.0,0.48236451]
[1759993914474,0.49775403,122110.0,122100.0,0.39716451]
[1759993914642,0.49775403,122110.0,122100.0,0.48236451]
[1759993916839,0.49775403,122110.0,122100.0,0.31856435]
[1759993917623,0.49775403,122110.0,122100.0,0.00236435]
[1759993917830,0.49775403,122110.0,122100.0,0.31856435]
[1759993918753,0.24257188,122110.0,122100.0,0.31856435]
[1759993918991,0.49775403,122110.0,122100.0,0.31856435]
[1759993919195,0.49775403,122110.0,122100.0,0.23336435]
[1759993919393,0.49775403,122110.0,122100.0,0.31856435]
[1759993919575,0.24257188,122110.0,122100.0,0.48236451]
[1759993919780,0.24257188,122110.0,122100.0,0.31856435]
[1759993919781,0.49775403,122110.0,122100.0,0.31856435]
[1759993920370,0.50649595,122110.0,122100.0,0.48236451]
[1759993920576,0.50649595,122110.0,122100.0,0.00236435]
[1759993920811,0.50649595,122110.0,122100.0,0.31856435]
[1759993921700,0.58961801,122110.0,122100.0,0.00236435]
[1759993921936,0.58961801,122110.0,122100.0,0.31856435]
[1759993922146,0.66961481,122110.0,122100.0,0.31856435]
[1759993923173,0.58961801,122110.0,122100.0,0.31856435]
[1759993923413,0.33443586,122110.0,122100.0,0.08756435]
[1759993923673,0.58961801,122110.0,122100.0,0.31856435]
[1759993923864,0.58961801,122110.0,122100.0,0.08756435]
[1759993924095,0.58961801,122110.0,122100.0,0.31856435]
[1759993925878,0.66961481,122110.0,122100.0,0.31856435]
[1759993926315,0.41443266,122110.0,122100.0,0.31856435]
[1759993926506,0.66961481,122110.0,122100.0,0.31856435]
[1759993927539,0.33443586,122110.0,122100.0,0.31856435]
[1759993927771,0.58961801,122110.0,122100.0,0.31856435]
[1759993928152,0.58961801,122110.0,122100.0,0.25136451]
[1759993928911,0.31170586,122110.0,122100.0,0.49745451]
[1759993929136,0.12071912,122110.0,122100.0,0.52163666]
[1759993929339,0.28450586,122110.0,122100.0,0.77212666]
[1759993929750,0.12071912,122110.0,122100.0,0.77212666]
[1759993930103,0.28450586,122110.0,122100.0,0.51694451]
[1759993931577,0.28450586,122110.0,122100.0,0.49745451]
[1759993932039,0.28450586,122110.0,122100.0,0.18125451]
[1759993932256,0.28450586,122110.0,122100.0,0.49745451]
[1759993934657,0.33573586,122110.0,122100.0,0.08756435]
[1759993934867,0.33573586,122110.0,122100.0,0.00236435]
[1759993935086,0.33573586,122110.0,122100.0,0.31856435]
[1759993938282,0.33573586,122110.0,122100.0,0.23336435]
[1759993938483,0.75407754,122110.0,122100.0,0.00236435]
[1759993938862,0.75407754,122110.0,122100.0,0.31856435]
[1759993942680,0.67583388,122110.0,122100.0,0.31856435]
[1759993943581,0.67583388,122110.0,122100.0,0.00236435]
[1759993943782,0.67583388,122110.0,122100.0,0.23336435]
[1759993945490,0.33573586,122110.0,122100.0,0.23336435]
[1759993945711,0.67583388,122110.0,122100.0,0.23336435]
[1759993945949,0.75583068,122110.0,122100.0,0.23336435]
[1759993949716,0.78598258,122110.0,122100.0,0.23336435]
[1759993950877,0.44588456,122110.0,122100.0,0.23336435]
[1759993951090,0.78598258,122110.0,122100.0,0.23336435]
[1759993952269,0.44588456,122110.0,122100.0,0.23336435]
[1759993952486,0.78598258,122110.0,122100.0,0.23336435]
[1759993953569,0.78598258,122110.0,122100.0,0.00236435]
[1759993953791,0.78598258,122110.0,122100.0,0.23336435]
[1759993960765,0.78598258,122110.0,122100.0,0.00236435]
[1759993960974,0.78598258,122110.0,122100.0,0.23336435]
[1759993962174,0.70598578,122110.0,122100.0,0.23336435]
[1759993966262,0.70598578,122110.0,122100.0,0.00236435]
[1759993966479,0.70598578,122110.0,122100.0,0.23336435]
[1759993967037,0.70598578,122110.0,122100.0,0.00236435]
[1759993967216,0.70598578,122110.0,122100.0,0.23336435]
[1759993967954,0.78598258,122110.0,122100.0,0.23336435]
[1759993971057,0.70598578,122110.0,122100.0,0.23336435]
[1759993974411,0.72131788,122110.0,122100.0,0.23336435]
[1759993975147,0.70598578,122110.0,122100.0,0.23336435]
[1759993975375,0.72131789,122110.0,122100.0,0.23336435]
[1759993982105,0.72131789,122110.0,122100.0,0.00236435]
[1759993982262,0.80131469,122110.0,122100.0,0.23332435]
[1759993982462,0.80131469,122110.0,122100.0,0.00236435]
[1759993982666,0.80131469,122110.0,122100.0,0.23332435]
[1759993983917,0.72131789,122110.0,122100.0,0.00236435]
[1759993984121,0.33573586,122110.0,122100.0,0.23332435]
[1759993984297,0.67583388,122110.0,122100.0,0.23332435]
[1759993984502,0.67583388,122110.0,122100.0,0.00236435]
[1759993984707,0.67583388,122110.0,122100.0,0.23332435]
[1759993985933,0.33573586,122110.0,122100.0,0.23332435]
[1759993986159,0.67583388,122110.0,122100.0,0.23332435]
[1759993987303,0.69116846,122110.0,122100.0,0.08756435]
[1759993987517,0.69116846,122110.0,122100.0,0.31852435]
[1759993987873,0.69116846,122110.0,122100.0,0.23332435]
[1759993988281,0.67583388,122110.0,122100.0,0.23332435]
[1759993989866,0.59092725,122110.0,122100.0,0.00236435]
[1759993990071,0.59092725,122110.0,122100.0,0.01584435]
[1759993991094,0.35106839,122110.0,122100.0,0.01584435]
[1759993991306,0.60625978,122110.0,122100.0,0.01584435]
[1759993992389,0.60625978,122110.0,122100.0,0.00236435]
[1759993992585,0.60625978,122110.0,122100.0,0.22252435]
[1759993993406,0.60625978,122110.0,122100.0,0.00236435]
[1759993993627,0.60625978,122110.0,122100.0,0.23332435]
[1759993997051,0.68625658,122110.0,122100.0,0.23332435]
[1759993997901,0.60625978,122110.0,122100.0,0.23332435]
[1759993998432,0.33573586,122110.0,122100.0,0.23332435]
[1759993998853,0.59092725,122110.0,122100.0,0.23332435]
[1759994001888,0.33573586,122110.0,122100.0,0.23332435]
[1759994002070,0.59092725,122110.0,122100.0,0.23332435]
[1759994003270,0.59092725,122110.0,122100.0,0.00236435]
[1759994003471,0.59092725,122110.0,122100.0,0.23332435]
[1759994007627,0.59092725,122110.0,122100.0,0.00236435]
[1759994007965,0.59092725,122110.0,122100.0,0.23332435]
[1759994008164,0.59092725,122110.0,122100.0,0.00236435]
[1759994008374,0.59092725,122110.0,122100.0,0.23332435]
[1759994008586,0.62743118,122110.0,122100.0,0.23332435]
[1759994009044,0.62743118,122110.0,122100.0,0.00236435]
[1759994009249,0.62743118,122110.0,122100.0,0.23332435]
[1759994010299,0.59092725,122110.0,122100.0,0.00236435]
[1759994010515,0.29608586,122110.0,122100.0,0.29028575]
[1759994010720,0.31253586,122110.0,122100.0,0.50486574]
[1759994011146,0.33536586,122110.0,122100.0,0.50486574]
[1759994012208,0.31253586,122110.0,122100.0,0.50486574]
[1759994012420,0.31253586,122110.0,122100.0,0.59006574]
[1759994016442,0.33674586,122110.0,122100.0,0.59006574]
[1759994017056,0.33674586,122110.0,122100.0,0.7538659]
[1759994017461,0.33674586,122110.0,122100.0,0.49867451]
[1759994018257,0.14874912,122110.0,122100.0,0.7538659]
[1759994018468,0.03759706,122110.0,122100.0,0.79758729]
[1759994018668,0.2013838,122110.0,122100.0,0.7733559]
[1759994019114,0.03759706,122110.0,122100.0,0.7733559]
[1759994022001,0.03459706,122110.0,122100.0,0.7733559]
[1759994022423,0.03859706,122110.0,122100.0,0.7733559]
[1759994022631,0.02859706,122110.0,122100.0,0.7723559]
[1759994023039,0.03359706,122110.0,122100.0,0.7733559]
[1759994024519,0.009,122110.0,122100.0,1.02854729]
[1759994024715,0.17278674,122110.0,122100.0,0.18251451]
[1759994024923,0.18836674,122110.0,122100.0,0.7538659]
[1759994025120,0.037,122110.0,122100.0,0.7538659]
[1759994027520,0.037,122110.0,122100.0,0.4377059]
[1759994027656,0.037,122110.0,122100.0,0.7538659]
[1759994028066,0.037,122110.0,122100.0,0.49867451]
[1759994028316,0.037,122110.0,122100.0,0.7538659]
[1759994029101,0.20078674,122110.0,122100.0,0.7538659]
[1759994029504,0.037,122110.0,122100.0,0.49867451]
[1759994029799,0.037,122110.0,122100.0,0.7538659]
[1759994029996,0.20078674,122110.0,122100.0,0.7538659]
[1759994030626,0.22510674,122110.0,122100.0,0.7374759]
[1759994030827,0.22510674,122110.0,122100.0,0.48228451]
[1759994031378,0.20078674,122110.0,122100.0,0.49887451]
[1759994035144,0.20078674,122110.0,122100.0,0.7540659]
[1759994035591,0.48029813,122110.0,122100.0,0.00236435]
[1759994035808,0.48029813,122110.0,122100.0,0.31848435]
[1759994036007,0.48029813,122110.0,122100.0,0.48228451]
[1759994036211,0.50489471,122110.0,122100.0,0.48228451]
[1759994036449,0.50489471,122110.0,122100.0,0.31848435]
[1759994037049,0.24970332,122110.0,122100.0,0.31848435]
[1759994038085,0.50489471,122110.0,122100.0,0.31848435]
[1759994039421,0.24970332,122110.0,122100.0,0.31848435]
[1759994039995,0.24970332,122110.0,122100.0,0.23328435]
[1759994039996,0.58801677,122110.0,122100.0,0.23328435]
[1759994040217,0.58801677,122110.0,122100.0,0.31848435]
[1759994040945,0.60423898,122110.0,122100.0,0.31848435]
[1759994041884,0.60423898,122110.0,122100.0,0.00236435]
[1759994042117,0.60423898,122110.0,122100.0,0.31848435]
[1759994042772,0.60423898,122110.0,122100.0,0.00236435]
[1759994042980,0.60423898,122110.0,122100.0,0.23328435]
[1759994047472,0.58801677,122110.0,122100.0,0.00236435]
[1759994047671,0.58801677,122110.0,122100.0,0.23328435]
[1759994048375,1.46855145,122110.0,122100.0,0.00236435]
[1759994048594,1.49331894,122110.0,122100.0,0.00236435]
[1759994048809,1.57331574,122110.0,122100.0,0.00236435]
[1759994049761,1.82850713,122110.0,122100.0,0.00236435]
[1759994050715,1.57331574,122110.0,122100.0,0.00236435]
[1759994051909,1.40329152,122110.0,122100.0,0.00236435]
[1759994052116,0.16385384,122060.0,122050.0,0.06619503]
[1759994052326,0.5042124,122060.0,122050.0,0.31639066]
[1759994052542,0.5547324,122060.0,122050.0,0.31639066]
[1759994052763,0.57933951,122060.0,122050.0,0.31639066]
[1759994053432,0.58871677,122060.0,122050.0,0.32239066]
[1759994053634,0.58033951,122060.0,122050.0,0.32239066]
[1759994054011,0.58533951,122060.0,122050.0,0.33239066]
[1759994054242,0.66846157,122060.0,122050.0,0.33239066]
[1759994054608,0.66846157,122060.0,122050.0,0.34833066]
[1759994054815,0.27758301,122060.0,122050.0,0.53168792]
[1759994055422,0.27758301,122060.0,122050.0,0.51219792]
[1759994057750,0.30440301,122060.0,122050.0,0.51219792]
[1759994057962,0.30440301,122060.0,122050.0,0.51474971]
[1759994059534,0.03060711,122060.0,122050.0,0.30769152]
[1759994059716,0.03060711,122060.0,122050.0,0.30319971]
[1759994059927,0.19446095,122060.0,122050.0,0.53423971]
[1759994063667,0.55036951,122060.0,122050.0,0.19850971]
[1759994063875,0.56163951,122060.0,122050.0,0.51474971]
[1759994067396,0.03060711,122060.0,122050.0,0.53423971]
[1759994067528,0.19446095,122060.0,122050.0,0.53423971]
[1759994074601,0.03060711,122060.0,122050.0,0.53423971]
[1759994075209,0.19446095,122060.0,122050.0,0.51478971]
[1759994075413,0.03060711,122060.0,122050.0,0.51478971]
[1759994076070,0.56268951,122060.0,122050.0,0.18256971]
[1759994076215,0.74651478,122060.0,122050.0,0.01870245]
[1759994076414,0.74651478,122060.0,122050.0,0.31902245]
[1759994076415,0.74051478,122060.0,122050.0,0.31902245]
[1759994076614,0.74051478,122060.0,122050.0,0.00970245]
[1759994076817,0.67040157,122060.0,122050.0,0.32602245]
[1759994077134,0.63926446,122060.0,122050.0,0.31902245]
[1759994077475,0.66887173,122060.0,122050.0,0.32602245]
[1759994077685,0.66987173,122060.0,122050.0,0.00970245]
[1759994077885,0.66987173,122060.0,122050.0,0.32602245]
[1759994078302,0.6851909,122060.0,122050.0,0.32602245]
[1759994078930,0.6801909,122060.0,122050.0,0.48288971]
[1759994079309,0.6851909,122060.0,122050.0,0.48988971]
[1759994079551,0.6606009,122060.0,122050.0,0.50492971]
[1759994079782,0.6606009,122060.0,122050.0,0.51269971]
[1759994085182,0.1290485,122060.0,122050.0,0.30435971]
[1759994085396,0.1290485,122060.0,122050.0,0.53539971]
[1759994085985,0.1290485,122060.0,122050.0,0.54370705]
[1759994086152,0.11372933,122060.0,122050.0,0.54370705]
[1759994086567,0.03060727,122060.0,122050.0,0.31266705]
[1759994086767,0.006,122060.0,122050.0,0.31266705]
[1759994087066,0.006,122060.0,122050.0,0.54370705]
[1759994087275,0.006,122060.0,122050.0,0.45019971]
[1759994087491,0.006,122060.0,122050.0,0.53543971]
[1759994089216,0.006,122060.0,122050.0,0.54347603]
[1759994090616,0.006,122060.0,122050.0,0.53543971]
[1759994091126,0.006,122060.0,122050.0,0.45019971]
[1759994091333,0.006,122060.0,122050.0,0.53543971]
[1759994091522,0.16985384,122060.0,122050.0,0.53543971]
[1759994095075,0.16985384,122060.0,122050.0,0.19637971]
[1759994095076,0.5259824,122060.0,122050.0,0.19637971]
[1759994095281,0.5602324,122060.0,122050.0,0.51269971]
[1759994095492,0.64335446,122060.0,122050.0,0.34883245]
[1759994095689,0.64335446,122060.0,122050.0,0.33379245]
[1759994096327,0.66796173,122060.0,122050.0,0.33379245]
[1759994097957,0.66796173,122060.0,122050.0,0.51332971]
[1759994098361,0.32760317,122060.0,122050.0,0.51332971]
[1759994098582,0.66796173,122060.0,122050.0,0.51332971]
[1759994099569,0.64507173,122060.0,122050.0,0.51332971]
[1759994099888,0.64507173,122060.0,122050.0,0.28224971]
[1759994100088,0.64507173,122060.0,122050.0,0.51332971]
[1759994100289,0.64507173,122060.0,122050.0,0.03314245]
[1759994100502,0.62046446,122060.0,122050.0,0.34946245]
[1759994101060,0.64335446,122060.0,122050.0,0.34946245]
[1759994101259,0.64335446,122060.0,122050.0,0.01747245]
[1759994101485,0.64335446,122060.0,122050.0,0.32602245]
[1759994102200,0.66796339,122060.0,122050.0,0.32602245]
[1759994103558,0.66796339,122060.0,122050.0,0.00970245]
[1759994103730,0.66796339,122060.0,122050.0,0.32598245]
[1759994104382,0.66796339,122060.0,122050.0,0.11061245]
[1759994104602,0.64507339,122060.0,122050.0,0.36580917]
[1759994104792,0.64507339,122060.0,122050.0,0.34942245]
[1759994104985,0.64507339,122060.0,122050.0,0.11838245]
[1759994105195,0.64507339,122060.0,122050.0,0.34942245]
[1759994106658,0.30443483,122060.0,122050.0,0.03314245]
[1759994106862,0.66829339,122060.0,122050.0,0.33375245]
[1759994107062,0.66829339,122060.0,122050.0,0.00970245]
[1759994107294,0.66829339,122060.0,122050.0,0.32602245]
[1759994108684,0.74829019,122060.0,122050.0,0.00970245]
[1759994108898,0.74829019,122060.0,122050.0,0.12698245]
[1759994111341,0.32793483,122060.0,122050.0,0.12698245]
[1759994111547,0.66829339,122060.0,122050.0,0.24078245]
[1759994113922,0.83870289,122060.0,122050.0,0.24078245]
[1759994117493,0.83870289,122060.0,122050.0,0.00970245]
[1759994117711,0.83870289,122060.0,122050.0,0.24078245]
[1759994119058,0.91052999,122060.0,122050.0,0.24078245]
[1759994119293,0.91052999,122060.0,122050.0,0.00970245]
[1759994119518,0.83870289,122060.0,122050.0,0.00970245]
[1759994119740,1.09408692,122060.0,122050.0,0.19138245]
[1759994119941,1.09408692,122060.0,122050.0,0.00970245]
[1759994120147,1.09408692,122060.0,122050.0,0.24074245]
[1759994121416,1.12423882,122060.0,122050.0,0.00970245]
[1759994121634,1.12423882,122060.0,122050.0,0.24078245]
[1759994122059,1.20423562,122060.0,122050.0,0.24078245]
[1759994122274,1.26705752,122060.0,122050.0,0.24078245]
[1759994123343,1.26705752,122060.0,122050.0,0.00970245]
[1759994126404,1.51345205,122060.0,122050.0,0.00970245]
[1759994126626,1.85345205,122060.0,122050.0,0.00970245]
[1759994126838,1.86110927,122060.0,122050.0,0.00970245]
[1759994128082,1.85610927,122060.0,122050.0,0.00270245]
[1759994128273,1.88109589,122060.0,122050.0,0.00270245]
[1759994128408,1.89009589,122060.0,122050.0,0.00770245]
[1759994128840,2.33539589,122060.0,122050.0,0.00770245]
[1759994129047,3.10154798,122060.0,122050.0,0.00770245]
[1759994129462,2.33539589,122060.0,122050.0,0.00770245]
[1759994131170,2.10431589,122060.0,122050.0,0.00770245]
[1759994131383,2.33543589,122060.0,122050.0,0.00770245]
[1759994132157,2.87046798,122060.0,122050.0,0.00770245]
[1759994132386,2.10431589,122060.0,122050.0,0.00770245]
[1759994132639,2.33543589,122060.0,122050.0,0.00770245]
[1759994133899,2.07832927,122060.0,122050.0,0.00770245]
[1759994134113,2.30944927,122060.0,122050.0,0.00770245]
[1759994134318,2.07832927,122060.0,122050.0,0.00770245]
[1759994134534,2.30944927,122060.0,122050.0,0.00770245]
[1759994134740,2.31744927,122060.0,122050.0,0.00770245]
[1759994134948,2.08632927,122060.0,122050.0,0.00770245]
[1759994135184,2.31744927,122060.0,122050.0,0.00770245]
[1759994135811,2.08632927,122060.0,122050.0,0.00770245]
[1759994136130,2.23741247,122060.0,122050.0,0.00770245]
[1759994136377,2.00633247,122060.0,122050.0,0.00770245]
[1759994136606,2.23741247,122060.0,122050.0,0.00770245]
[1759994137664,2.00633247,122060.0,122050.0,0.00770245]
[1759994137868,2.23741247,122060.0,122050.0,0.00770245]
[1759994138311,2.00633247,122060.0,122050.0,0.00770245]
[1759994138740,2.23741247,122060.0,122050.0,0.00770245]
[1759994139706,2.00633247,122060.0,122050.0,0.00770245]
[1759994139967,1.99833247,122060.0,122050.0,0.00770245]
[1759994140155,0.92749654,122060.0,122050.0,0.00770245]
[1759994140429,0.92749161,122060.0,122050.0,0.00770245]
[1759994140659,0.60163339,122060.0,122050.0,0.00770245]
[1759994140881,0.28058483,122060.0,122050.0,0.23701643]
[1759994141099,0.53596886,122060.0,122050.0,0.53706971]
[1759994142595,0.53596886,122060.0,122050.0,0.37320245]
[1759994142777,0.53596886,122060.0,122050.0,0.14200245]
[1759994142979,0.53596886,122060.0,122050.0,0.38958917]
[1759994143192,0.53596886,122060.0,122050.0,0.37320245]
[1759994143393,0.53596886,122060.0,122050.0,0.53706971]
[1759994144055,0.53596886,122060.0,122050.0,0.37320245]
[1759994144674,0.28058483,122060.0,122050.0,0.37320245]
[1759994144880,0.53596886,122060.0,122050.0,0.37320245]
[1759994145850,0.53596886,122060.0,122050.0,0.53706971]
[1759994146073,0.53596886,122060.0,122050.0,0.37320245]
[1759994146555,0.53596886,122060.0,122050.0,0.53706971]
[1759994147025,0.53596886,122060.0,122050.0,0.37320245]
[1759994147242,0.11673099,122060.0,122050.0,0.30586971]
[1759994147459,0.009,122060.0,122050.0,0.53702971]
[1759994149513,0.009,122060.0,122050.0,0.53706971]
[1759994149912,0.009,122060.0,122050.0,0.45182971]
[1759994150117,0.009,122060.0,122050.0,0.53706971]
[1759994150389,0.009,122060.0,122050.0,0.79245374]
[1759994150590,0.009,122060.0,122050.0,0.70717374]
[1759994150800,0.009,122060.0,122050.0,0.47601374]
[1759994151006,0.009,122060.0,122050.0,0.79245374]
[1759994151241,0.009,122060.0,122050.0,1.13245374]
[1759994151487,0.009,122060.0,122050.0,0.87706971]
[1759994151717,0.005,122060.0,122050.0,1.12745374]
[1759994151898,0.005,122060.0,122050.0,1.04221374]
[1759994152191,0.005,122060.0,122050.0,1.13245374]
[1759994152392,0.41921221,122080.0,122070.0,0.16384041]
[1759994152538,0.41921221,122080.0,122070.0,0.41142445]
[1759994152539,0.50233427,122080.0,122070.0,0.41142445]
[1759994152739,0.50233427,122080.0,122070.0,0.44397041]
[1759994153371,0.50233308,122080.0,122070.0,0.21277041]
[1759994153663,0.50233308,122080.0,122070.0,0.52917041]
[1759994154310,0.24694905,122080.0,122070.0,0.52917041]
[1759994154517,0.25194905,122080.0,122070.0,0.53017041]
[1759994154723,0.25494905,122080.0,122070.0,0.21577041]
[1759994155103,0.25494905,122080.0,122070.0,0.53217041]
[1759994155542,0.50733308,122080.0,122070.0,0.53017041]
[1759994155701,0.25494905,122080.0,122070.0,0.54117041]
[1759994155915,0.24994905,122080.0,122070.0,0.54017041]
[1759994156315,0.25094905,122080.0,122070.0,0.54117041]
[1759994157853,0.08712206,122080.0,122070.0,0.54270123]
[1759994158016,0.004,122080.0,122070.0,0.56692526]
[1759994158520,0.004,122080.0,122070.0,0.79808526]
[1759994158716,0.004,122080.0,122070.0,0.90692526]
[1759994159021,0.004,122080.0,122070.0,1.13808526]
[1759994160168,0.16782699,122080.0,122070.0,0.82168526]
[1759994160384,0.16782699,122080.0,122070.0,1.13808526]
[1759994160587,0.004,122080.0,122070.0,0.90692526]
[1759994160796,0.16782699,122080.0,122070.0,0.65154123]
[1759994160999,0.16782699,122080.0,122070.0,0.71886082]
[1759994161206,0.16782699,122080.0,122070.0,0.40246082]
[1759994161419,0.43914102,122080.0,122070.0,0.37773082]
[1759994161641,0.73059505,122080.0,122070.0,0.09873082]
[1759994161854,0.81371711,122080.0,122070.0,0.32989082]
[1759994162058,0.81371711,122080.0,122070.0,0.33001082]
[1759994163217,0.81371711,122080.0,122070.0,0.01353082]
[1759994163455,0.81371711,122080.0,122070.0,0.33001082]
[1759994164301,0.81371711,122080.0,122070.0,0.01353082]
[1759994164477,0.81371711,122080.0,122070.0,0.33001082]
[1759994167174,0.81371711,122080.0,122070.0,0.01353082]
[1759994167370,0.81371711,122080.0,122070.0,0.33001082]
[1759994168486,0.81371711,122080.0,122070.0,0.01353082]
[1759994168633,0.81371711,122080.0,122070.0,0.32997082]
[1759994171356,0.91665099,122080.0,122070.0,0.32993082]
[1759994171743,0.89371391,122080.0,122070.0,0.32993082]
[1759994172354,0.91665498,122080.0,122070.0,0.32993082]
[1759994172582,0.83665818,122080.0,122070.0,0.32993082]
[1759994175878,0.66627278,122080.0,122070.0,0.32993082]
[1759994176313,0.32589012,122080.0,122070.0,0.09873082]
[1759994176493,0.66627278,122080.0,122070.0,0.32993082]
[1759994176690,0.65097895,122080.0,122070.0,0.32993082]
[1759994176895,0.62666895,122080.0,122070.0,0.12388082]
[1759994177099,0.59897895,122080.0,122070.0,0.39406486]
[1759994177349,0.6142857,122080.0,122070.0,0.37768082]
[1759994177503,0.27390304,122080.0,122070.0,0.37768082]
[1759994178717,0.27391032,122080.0,122070.0,0.37768082]
[1759994179251,0.27391355,122080.0,122070.0,0.37768082]
[1759994180077,0.63027621,122080.0,122070.0,0.35508082]
[1759994180482,0.66492621,122080.0,122070.0,0.35508082]
[1759994180774,0.64186621,122080.0,122070.0,0.35508082]
[1759994182358,0.64186621,122080.0,122070.0,0.35504082]
[1759994182843,0.64186621,122080.0,122070.0,0.37764082]
[1759994183051,0.30148355,122080.0,122070.0,0.37764082]
[1759994183261,0.64186621,122080.0,122070.0,0.37764082]
[1759994183497,0.61429621,122080.0,122070.0,0.37764082]
[1759994184112,0.27391355,122080.0,122070.0,0.54148123]
[1759994184325,0.27391355,122080.0,122070.0,0.37764082]
[1759994184848,0.61429621,122080.0,122070.0,0.37764082]
[1759994186826,0.27391355,122080.0,122070.0,0.37764082]
[1759994187059,0.17548151,122080.0,122070.0,0.31032123]
[1759994187278,0.16782699,122080.0,122070.0,0.54144123]
[1759994188557,0.16782699,122080.0,122070.0,0.37760082]
[1759994188774,0.16782699,122080.0,122070.0,0.06128082]
[1759994188972,0.16782699,122080.0,122070.0,0.39398486]
[1759994189197,0.16782699,122080.0,122070.0,0.37760082]
[1759994189860,0.16782699,122080.0,122070.0,0.37764082]
[1759994190256,0.52418965,122080.0,122070.0,0.03868082]
[1759994190459,0.56649478,122080.0,122070.0,0.34628082]
[1759994190672,0.53577965,122080.0,122070.0,0.32304082]
[1759994191534,0.19539699,122080.0,122070.0,0.32304082]
[1759994191745,0.53577965,122080.0,122070.0,0.32304082]
[1759994194367,0.53577965,122080.0,122070.0,0.34564082]
[1759994194576,0.50820965,122080.0,122070.0,0.31032123]
[1759994194792,0.50820965,122080.0,122070.0,0.54144123]
[1759994195037,0.16782699,122080.0,122070.0,0.54144123]